Cogmind - Beta 12 @@@ ROGUE MODE // 2023.05.24 @ 16:57:31 Player: Mr Goldstein Result: Self-destructed Performance ------------- Evolutions (7) 3500 Regions Visited (19) 3800 Robots Destroyed (8) 40 Value Destroyed (246) 246 Prototype IDs (216) 4320 Alien Tech Used (2) 400 Bonus (5461) 5461 TOTAL SCORE: 17767 Bonus ------- Pacifist 1125 High Alert Combat Kills 36 Entered DSFs 500 Met Data Miner 300 Used Data Conduit 3000 Pursued by Intercept 500 Cogmind --------- Core Integrity 1300/1300 Matter 169/300 Energy 100/100 System Corruption 0% Temperature Cool (0) Movement Core (50) Location -3/Research Parts ------- > --- POWER (1) -------- (None) > --- PROPULSION (8) --- Field Propulsion Drive > --- UTILITY (6) ------ Launcher Guidance Computer Improved Utility Shielding Advanced Hacking Suite > --- WEAPON (6) ------- (None) > --- INVENTORY (5) ---- Light Fission Core Heavy Antimatter Reactor Heavy Shock Bomb Launcher Thunder Hammer Peak State ------------ > --- POWER ------------ Heavy Antimatter Reactor > --- PROPULSION ------- Cooled Nuclear Pulse Thruster Cooled Nuclear Pulse Thruster > --- UTILITY ---------- Improved Utility Shielding Advanced Hacking Suite Advanced Hacking Suite > --- WEAPON ----------- Heavy Shock Bomb Launcher Thunder Hammer > --- INVENTORY -------- Light Fission Core Transdimensional Reconstructor [Rating: 51] Favorites ----------- Power Light Fission Core Engine Angular Momentum Engine Power Core Light Fission Core Reactor Heavy Antimatter Reactor Propulsion Xenon Bombardment Thruster Flight Unit Xenon Bombardment Thruster Utility Advanced Hacking Suite Device Experimental Sensor Array Processor Launcher Guidance Computer Hackware Advanced Hacking Suite Protection Improved Utility Shielding Weapon Thunder Hammer Energy Cannon Cooled Plasma Cannon Launcher Heavy Shock Bomb Launcher Impact Weapon Thunder Hammer Slashing Weapon Power Sword Build | -11 -10 -10 -10 -9 -8 -7 -7 -6 -6 -6 -6 -5 -5 -5 -5 -5 -4 -4 -3 ------- Run | Jun Mat Min Exi Min Mat Fac DSF Fac Low Low Dat Pro Fac Upp Upp Zhi Pro Fac Res Slots Evolved 14 | . . . . . 4 2 . 2 . . . . 2 . . . . 2 2 Power . | . . . . . . . . . . . . . . . . . . . . Propulsion 6 | . . . . . . 2 . 1 . . . . 1 . . . . 1 1 Utility 4 | . . . . . . . . 1 . . . . 1 . . . . 1 1 Weapon 4 | . . . . . 4 . . . . . . . . . . . . . . Parts Attached 55 | . . . . 1 . . 1 16 2 2 . 1 6 2 2 6 . 16 . Power 8 | . . . . . . . . 2 . . . 1 1 . . 1 . 3 . Engine 1 | . . . . . . . . 1 . . . . . . . . . . . Core 4 | . . . . . . . . 1 . . . 1 1 . . 1 . . . Reactor 3 | . . . . . . . . . . . . . . . . . . 3 . Propulsion 28 | . . . . 1 . . . 9 2 1 . . 2 2 1 3 . 7 . Treads . | . . . . . . . . . . . . . . . . . . . . Leg . | . . . . . . . . . . . . . . . . . . . . Wheel . | . . . . . . . . . . . . . . . . . . . . Hover . | . . . . . . . . . . . . . . . . . . . . Flight 28 | . . . . 1 . . . 9 2 1 . . 2 2 1 3 . 7 . Utility 10 | . . . . . . . 1 1 . 1 . . 3 . 1 2 . 1 . Device 1 | . . . . . . . . 1 . . . . . . . . . . . Storage . | . . . . . . . . . . . . . . . . . . . . Processor 1 | . . . . . . . . . . . . . . . . . . 1 . Hackware 2 | . . . . . . . . . . . . . 1 . . 1 . . . Protection 6 | . . . . . . . 1 . . 1 . . 2 . 1 1 . . . Artifact . | . . . . . . . . . . . . . . . . . . . . Weapon 9 | . . . . . . . . 4 . . . . . . . . . 5 . Energy Gun . | . . . . . . . . . . . . . . . . . . . . Energy Cannon 1 | . . . . . . . . 1 . . . . . . . . . . . Ballistic Gun . | . . . . . . . . . . . . . . . . . . . . Ballistic Cannon . | . . . . . . . . . . . . . . . . . . . . Launcher 3 | . . . . . . . . . . . . . . . . . . 3 . Special Weapon . | . . . . . . . . . . . . . . . . . . . . Impact Weapon 2 | . . . . . . . . . . . . . . . . . . 2 . Slashing Weapon 3 | . . . . . . . . 3 . . . . . . . . . . . Piercing Weapon . | . . . . . . . . . . . . . . . . . . . . Special Melee Weapon . | . . . . . . . . . . . . . . . . . . . . Unidentified Prototypes 4 | . . . . . . . . 2 . . . . . . . 1 . 1 . Corrupted Parts 2 | . . . . . . . . . . . . . . . . . . 2 . System Corruption 20 | . . . . . . . . . . . . . . . . . . 20 . Parts Lost 31 | . . . . 1 . . . 8 1 . 1 . 3 . 5 . 1 11 . Power 2 | . . . . . . . . . . . 1 . . . . . 1 . . Propulsion 24 | . . . . 1 . . . 6 1 . . . 2 . 5 . . 9 . Utility 4 | . . . . . . . . 1 . . . . 1 . . . . 2 . Weapon 1 | . . . . . . . . 1 . . . . . . . . . . . Highest Loss Streak 3 | . . . . 1 . . . 3 1 . 1 . 3 . 2 . 1 3 . To Critical Strikes . | . . . . . . . . . . . . . . . . . . . . Average Slot Usage (%) 23 | . . . . 1 . . . 17 37 34 46 43 45 47 31 18 46 32 . Core 1 | . . . . . . . . . 6 6 6 3 5 5 4 1 4 . . Flight 11 | . . . . 1 . . . 9 30 26 33 33 29 23 8 4 17 10 . Hackware 2 | . . . . . . . . . . . . . 2 5 5 5 11 8 . Protection 4 | . . . . . . . . 2 . . 6 6 6 11 11 5 11 6 . Naked Turns 484 | . 39 120 89 112 69 14 34 7 . . . . . . . . . . . Heaviest Build 19 | . . . . . . . 3 10 7 11 11 9 15 11 19 17 17 14 2 Greatest Support 38 | 3 3 3 3 4 3 3 3 20 27 28 28 28 35 38 38 18 24 28 3 Greatest Overweight (x) 1 | . . . . . . . . . . . . . . . 1 . . 1 . Average Overweight (x) . | . . . . . . . . . . . . . . . . . . . . Largest Inventory Capacity 5 | 5 5 5 5 5 5 5 5 5 5 5 5 5 5 5 5 5 5 5 5 Average Capacity 5 | 5 5 5 5 5 5 5 5 5 5 5 5 5 5 5 5 5 5 5 5 Most Carried 5 | . . . . 1 5 5 5 5 5 3 3 4 5 4 3 4 3 5 4 Average Carried 2 | . . . . . 3 5 5 4 3 3 3 3 4 2 2 3 3 3 4 Final Capacity 5 | 5 5 5 5 5 5 5 5 5 5 5 5 5 5 5 5 5 5 5 5 Final Carried 5 | . . . . 1 5 5 5 5 3 3 3 4 4 2 3 3 3 4 4 Class Distribution -------------------- 56% | Mutant 23% | Sprinter 13% | Hacker-Sprinter 5% | Hacker-Mutant Dominant Class ---------------- Mutant | -10/Materials Mutant | -10/Mines Mutant | -10/Exiles Mutant | -9/Mines Mutant | -8/Materials Mutant | -7/Factory Mutant | -7/DSF Mutant | -6/Factory Sprinter | -6/Lower Caves Sprinter | -6/Lower Caves Sprinter | -6/Data Miner Sprinter | -5/Proximity Caves Sprinter | -5/Factory Sprinter | -5/Upper Caves Mutant | -5/Upper Caves Mutant | -5/Zhirov Hacker-Sprinter | -4/Proximity Caves Hacker-Sprinter | -4/Factory Hacker-Sprinter | -3/Research Resources | -11 -10 -10 -10 -9 -8 -7 -7 -6 -6 -6 -6 -5 -5 -5 -5 -5 -4 -4 -3 ----------- Run | Jun Mat Min Exi Min Mat Fac DSF Fac Low Low Dat Pro Fac Upp Upp Zhi Pro Fac Res Matter Collected 612 | 185 . 15 . . . . . . 13 23 . 48 10 12 45 . . 261 . Remotely . | . . . . . . . . . . . . . . . . . . . . Salvage Created 225 | . . . . . . . . 22 . . . . . . . . . 203 . Parts 13 | . . . . . . . . 1 . . . . . . . . . 12 . Haulers Intercepted . | . . . . . . . . . . . . . . . . . . . . Recyclers Shooed . | . . . . . . . . . . . . . . . . . . . . Parts Field Recycled . | . . . . . . . . . . . . . . . . . . . . Retrieved Matter . | . . . . . . . . . . . . . . . . . . . . Parts Self-Destructed 4 | . . . . . . . . . . . . 2 . . . . 2 . . Prevented 2 | . . . . . . . . . . . . 2 . . . . . . . Kills | -11 -10 -10 -10 -9 -8 -7 -7 -6 -6 -6 -6 -5 -5 -5 -5 -5 -4 -4 -3 ------- Run | Jun Mat Min Exi Min Mat Fac DSF Fac Low Low Dat Pro Fac Upp Upp Zhi Pro Fac Res Combat Hostiles Destroyed 8 | . . . . . . . . 1 . . . . . . . . . 7 . Melee 1 | . . . . . . . . 1 . . . . . . . . . . . AOE 7 | . . . . . . . . . . . . . . . . . . 7 . Classes Destroyed 1 | . . . . . . . . 1 . . . . . . . . . . . Swarmer 8 | . . . . . . . . 1 . . . . . . . . . 7 . Best Kill Streak 4 | . . . . . . . . 1 . . . . . . . . . 4 . Combat Bots Only 4 | . . . . . . . . 1 . . . . . . . . . 4 . Max Kills in Single Turn 3 | . . . . . . . . 1 . . . . . . . . . 3 . Gunslinging . | . . . . . . . . . . . . . . . . . . . . Exploded 3 | . . . . . . . . . . . . . . . . . . 3 . Melee 1 | . . . . . . . . 1 . . . . . . . . . . . Uniques/NPCs Destroyed . | . . . . . . . . . . . . . . . . . . . . Combat | -11 -10 -10 -10 -9 -8 -7 -7 -6 -6 -6 -6 -5 -5 -5 -5 -5 -4 -4 -3 -------- Run | Jun Mat Min Exi Min Mat Fac DSF Fac Low Low Dat Pro Fac Upp Upp Zhi Pro Fac Res Damage Taken 5292 | . 115 . . 145 323 . 249 1158 59 34 78 . 240 58 951 . 157 1725 . Core 3238 | . 115 . . 129 323 . 249 635 32 16 40 . 116 . 501 . 43 1039 . Absorbed by Shields . | . . . . . . . . . . . . . . . . . . . . Redirected to Shielding 119 | . . . . . . . . . . . . . . 13 70 . 9 27 . Core Remaining (%) 36 | 100 . . . 2 41 . 64 . . . . 14 . . . . 34 3 . Volleys Fired 8 | . . . . . . . . . . . . . . . . . . 8 . Largest 1 | . . . . . . . . . . . . . . . . . . 1 . Hottest 46 | . . . . . . . . . . . . . . . . . . 46 . Shots Fired 8 | . . . . . . . . . . . . . . . . . . 8 . Gun . | . . . . . . . . . . . . . . . . . . . . Cannon . | . . . . . . . . . . . . . . . . . . . . Launcher 8 | . . . . . . . . . . . . . . . . . . 8 . Special . | . . . . . . . . . . . . . . . . . . . . Kinetic . | . . . . . . . . . . . . . . . . . . . . Thermal . | . . . . . . . . . . . . . . . . . . . . Explosive . | . . . . . . . . . . . . . . . . . . . . Electromagnetic 8 | . . . . . . . . . . . . . . . . . . 8 . Robot Hit Streak 1 | . . . . . . . . . . . . . . . . . . 1 . Robot Miss Streak . | . . . . . . . . . . . . . . . . . . . . Penetration Max . | . . . . . . . . . . . . . . . . . . . . Secondary Targets . | . . . . . . . . . . . . . . . . . . . . Shots Hit Robots 6 | . . . . . . . . 5 . . . . . . . . . 1 . Core Hits 15 | . . . . . . . . 1 . . . . . . . . . 14 . Critical Kills . | . . . . . . . . . . . . . . . . . . . . Critical Parts Destroyed . | . . . . . . . . . . . . . . . . . . . . Critical Strikes 1 | . . . . . . . . 1 . . . . . . . . . . . Sever 1 | . . . . . . . . 1 . . . . . . . . . . . Melee Attacks 16 | . . . . . . . . 13 . . . . . . . . . 3 . Impact 3 | . . . . . . . . . . . . . . . . . . 3 . Slashing 13 | . . . . . . . . 13 . . . . . . . . . . . Piercing . | . . . . . . . . . . . . . . . . . . . . Sneak Attacks . | . . . . . . . . . . . . . . . . . . . . Combat Hostiles . | . . . . . . . . . . . . . . . . . . . . Follow-up Attacks . | . . . . . . . . . . . . . . . . . . . . Damage Inflicted 570 | . . . . . 4 . . 205 . . . . . . . . . 361 . Guns . | . . . . . . . . . . . . . . . . . . . . Cannons . | . . . . . . . . . . . . . . . . . . . . Explosions 355 | . . . . . . . . . . . . . . . . . . 355 . Melee 205 | . . . . . . . . 205 . . . . . . . . . . . Ramming 10 | . . . . . 4 . . . . . . . . . . . . 6 . Kinetic . | . . . . . . . . . . . . . . . . . . . . Thermal . | . . . . . . . . . . . . . . . . . . . . Explosive . | . . . . . . . . . . . . . . . . . . . . Electromagnetic 355 | . . . . . . . . . . . . . . . . . . 355 . Impact . | . . . . . . . . . . . . . . . . . . . . Slashing 205 | . . . . . . . . 205 . . . . . . . . . . . Piercing . | . . . . . . . . . . . . . . . . . . . . Highest Corruption 21 | . . . . . 2 . . . . . . . . . 2 2 3 21 . Average Corruption 9 | . . . . . 2 . . . . . . . . . 1 2 2 17 . Corruption Purged . | . . . . . . . . . . . . . . . . . . . . Corruption Blocked . | . . . . . . . . . . . . . . . . . . . . Effects 17 | . . . . . . . . . . . . . . . 1 2 1 13 . Message Errors 1 | . . . . . . . . . . . . . . . . . . 1 . Matter Fused 5 | . . . . . . . . . . . . . . . 1 2 1 1 . Heat Flow Errors 2 | . . . . . . . . . . . . . . . . . . 2 . Energy Discharges 1 | . . . . . . . . . . . . . . . . . . 1 . Data Loss (minor) 2 | . . . . . . . . . . . . . . . . . . 2 . Misdirections 6 | . . . . . . . . . . . . . . . . . . 6 . Overload Shots . | . . . . . . . . . . . . . . . . . . . . Overflow Damage 21 | . . . . . . . . 16 . . . . . . . . . 5 . Projectiles . | . . . . . . . . . . . . . . . . . . . . Explosions 5 | . . . . . . . . . . . . . . . . . . 5 . Melee 16 | . . . . . . . . 16 . . . . . . . . . . . Knockbacks . | . . . . . . . . . . . . . . . . . . . . Impact . | . . . . . . . . . . . . . . . . . . . . Kinetic . | . . . . . . . . . . . . . . . . . . . . Secondary . | . . . . . . . . . . . . . . . . . . . . Self-Inflicted Damage 17 | . . . . . 2 . . . . . . . . . . . . 15 . Shots 1 | . . . . . . . . . . . . . . . . . . 1 . Rammed 3 | . . . . . 1 . . . . . 1 . . . . . . 1 . Targets Rammed 3 | . . . . . 1 . . . . . 1 . . . . . . 1 . Kicked . | . . . . . . . . . . . . . . . . . . . . Crushed . | . . . . . . . . . . . . . . . . . . . . Highest Temperature 266 | . . . . . . . . 21 4 10 20 129 . . 8 . . 266 . Average Temperature 69 | . . . . . . . . 21 4 6 9 77 . . 8 . . 150 . Received Heat Transfer 610 | . 18 . . . 162 . . 184 9 9 . . . . 96 . . 132 . Siege Activations . | . . . . . . . . . . . . . . . . . . . . Robots Corrupted . | . . . . . . . . . . . . . . . . . . . . Combat Hostiles . | . . . . . . . . . . . . . . . . . . . . Parts Fried 3 | . . . . . . . . . . . . . . . . . . 3 . Impact Corruptions . | . . . . . . . . . . . . . . . . . . . . Robots Melted . | . . . . . . . . . . . . . . . . . . . . Combat Hostiles . | . . . . . . . . . . . . . . . . . . . . Parts Melted . | . . . . . . . . . . . . . . . . . . . . Heat Transferred . | . . . . . . . . . . . . . . . . . . . . Parts Sabotaged . | . . . . . . . . . . . . . . . . . . . . Parts Stolen . | . . . . . . . . . . . . . . . . . . . . Parts Stripped . | . . . . . . . . . . . . . . . . . . . . Power Chain Reactions . | . . . . . . . . . . . . . . . . . . . . Missiles Intercepted . | . . . . . . . . . . . . . . . . . . . . Alert | -11 -10 -10 -10 -9 -8 -7 -7 -6 -6 -6 -6 -5 -5 -5 -5 -5 -4 -4 -3 ------- Run | Jun Mat Min Exi Min Mat Fac DSF Fac Low Low Dat Pro Fac Upp Upp Zhi Pro Fac Res Peak Influence 752 | . 15 5 . 15 1 . . 450 . . . . 147 . . . . 752 352 Initial 352 | . . 5 . . 1 . . . . . . . 65 . . . . 37 352 Average 164 | . 6 5 . 1 1 . . 151 . . . . 101 . . . . 423 352 Maximum Alert Level 3 | . . . . . . . . 2 . . . . . . . . . 3 1 Low Security (%) 72 | 100 100 100 . 100 100 100 100 62 . . . . 100 . . . . 35 . Level 1 9 | . . . . . . . . 31 . . . . . . . . . 4 100 Level 2 15 | . . . . . . . . 5 . . . . . . . . . 51 . Level 3 2 | . . . . . . . . . . . . . . . . . . 8 . Level 4 . | . . . . . . . . . . . . . . . . . . . . Level 5 . | . . . . . . . . . . . . . . . . . . . . High Security . | . . . . . . . . . . . . . . . . . . . . Max Security . | . . . . . . . . . . . . . . . . . . . . Squads Dispatched 19 | . 2 . . . 3 . . 5 . . . . 3 . . . . 6 . Investigation 8 | . 1 . . . 1 . . 2 . . . . 2 . . . . 2 . Extermination 1 | . . . . . . . . 1 . . . . . . . . . . . Reinforcement 8 | . 1 . . . 2 . . 2 . . . . 1 . . . . 2 . Assault 1 | . . . . . . . . . . . . . . . . . . 1 . Garrison . | . . . . . . . . . . . . . . . . . . . . Intercept 1 | . . . . . . . . . . . . . . . . . . 1 . Searches Triggered 1 | . . . . . . . . . . . . . . . . . . 1 . Construction Impeded 1 | . . . . . . . . . . . . . . . . . . 1 . Haulers Reinforced . | . . . . . . . . . . . . . . . . . . . . Active Scanning Responses . | . . . . . . . . . . . . . . . . . . . . Cargo Convoy Interrupts . | . . . . . . . . . . . . . . . . . . . . Stealth | -11 -10 -10 -10 -9 -8 -7 -7 -6 -6 -6 -6 -5 -5 -5 -5 -5 -4 -4 -3 --------- Run | Jun Mat Min Exi Min Mat Fac DSF Fac Low Low Dat Pro Fac Upp Upp Zhi Pro Fac Res Distress Signals 3 | . 1 . . . 1 . . . . . . 1 . . . . . . . Communications Jammed . | . . . . . . . . . . . . . . . . . . . . Distress Signals . | . . . . . . . . . . . . . . . . . . . . Times Spotted 185 | . 6 . . 14 15 . 1 32 5 9 4 9 6 1 12 . 7 64 . Peak Tracking Total 21 | . 6 . . 16 16 . 1 13 4 6 4 9 6 1 10 . 7 21 . Tactical Retreats 23 | . . . . . . . . 6 1 3 . 3 . . 1 . 1 8 . Traps | -11 -10 -10 -10 -9 -8 -7 -7 -6 -6 -6 -6 -5 -5 -5 -5 -5 -4 -4 -3 ------- Run | Jun Mat Min Exi Min Mat Fac DSF Fac Low Low Dat Pro Fac Upp Upp Zhi Pro Fac Res Traps Triggered 5 | . 1 . . . 2 . . . . . . . . . . . . 2 . Indirectly . | . . . . . . . . . . . . . . . . . . . . Trap Hack Attempts . | . . . . . . . . . . . . . . . . . . . . Triggered . | . . . . . . . . . . . . . . . . . . . . Disarmed . | . . . . . . . . . . . . . . . . . . . . Reprogrammed . | . . . . . . . . . . . . . . . . . . . . Reused . | . . . . . . . . . . . . . . . . . . . . Traps Extracted . | . . . . . . . . . . . . . . . . . . . . Installed . | . . . . . . . . . . . . . . . . . . . . Triggered 4 | . . . . . . . . . 1 . . 3 . . . . . . . Machines | -11 -10 -10 -10 -9 -8 -7 -7 -6 -6 -6 -6 -5 -5 -5 -5 -5 -4 -4 -3 ---------- Run | Jun Mat Min Exi Min Mat Fac DSF Fac Low Low Dat Pro Fac Upp Upp Zhi Pro Fac Res Machines Disabled 3 | . . . . . . . . . . . . . . . . . . 3 . Max in Single Turn 1 | . . . . . . . . . . . . . . . . . . 1 . Garrison Access 2 | . . . . . . . . . . . . . . . . . . 2 . Machines Repaired . | . . . . . . . . . . . . . . . . . . . . Machines Sabotaged . | . . . . . . . . . . . . . . . . . . . . Overloaded Fab Kills . | . . . . . . . . . . . . . . . . . . . . Hacking | -11 -10 -10 -10 -9 -8 -7 -7 -6 -6 -6 -6 -5 -5 -5 -5 -5 -4 -4 -3 --------- Run | Jun Mat Min Exi Min Mat Fac DSF Fac Low Low Dat Pro Fac Upp Upp Zhi Pro Fac Res Machines Accessed 15 | . . . . . . 1 . 2 1 . 3 1 2 . 1 2 . 2 . Terminals 9 | . . . . . . 1 . 2 1 . . 1 2 . 1 . . 1 . Fabricators . | . . . . . . . . . . . . . . . . . . . . Repair Stations . | . . . . . . . . . . . . . . . . . . . . Recycling Units . | . . . . . . . . . . . . . . . . . . . . Scanalyzers . | . . . . . . . . . . . . . . . . . . . . Garrison Access 1 | . . . . . . . . . . . . . . . . . . 1 . Total Hacks 51 | . . . . . . 1 . 6 1 . 20 1 5 . 7 5 . 5 . Successful 39 | . . . . . . 1 . 2 1 . 20 1 1 . 7 5 . 1 . Failed 12 | . . . . . . . . 4 . . . . 4 . . . . 4 . Catastrophic 4 | . . . . . . . . 1 . . . . 1 . . . . 2 . Database Lockouts . | . . . . . . . . . . . . . . . . . . . . Manual 8 | . . . . . . . . . . . . . 5 . . . . 3 . Terminals 24 | . . . . . . 1 . 6 1 . . 1 5 . 7 . . 3 . Fabricators . | . . . . . . . . . . . . . . . . . . . . Repair Stations . | . . . . . . . . . . . . . . . . . . . . Recycling Units . | . . . . . . . . . . . . . . . . . . . . Scanalyzers . | . . . . . . . . . . . . . . . . . . . . Garrison Access 2 | . . . . . . . . . . . . . . . . . . 2 . Terminal Hacks 38 | . . . . . . 1 . 2 1 . 20 1 1 . 7 5 . . . Record 15 | . . . . . . . . . 1 . 2 . . . 7 5 . . . Part Schematic 10 | . . . . . . . . . . . 10 . . . . . . . . Robot Schematic 5 | . . . . . . . . . . . 5 . . . . . . . . Robot Analysis 1 | . . . . . . . . 1 . . . . . . . . . . . Prototype ID Bank 3 | . . . . . . . . . . . 3 . . . . . . . . Open Door 1 | . . . . . . . . . . . . 1 . . . . . . . Open DSF 1 | . . . . . . 1 . . . . . . . . . . . . . Branch Access Points 2 | . . . . . . . . 1 . . . . 1 . . . . . . Fabricator Hacks . | . . . . . . . . . . . . . . . . . . . . Repair Station Hacks . | . . . . . . . . . . . . . . . . . . . . Recycling Unit Hacks . | . . . . . . . . . . . . . . . . . . . . Scanalyzer . | . . . . . . . . . . . . . . . . . . . . Garrison Access Hacks 1 | . . . . . . . . . . . . . . . . . . 1 . Seal Access 1 | . . . . . . . . . . . . . . . . . . 1 . Unauthorized Hacks . | . . . . . . . . . . . . . . . . . . . . Terminals . | . . . . . . . . . . . . . . . . . . . . Fabricators . | . . . . . . . . . . . . . . . . . . . . Repair Stations . | . . . . . . . . . . . . . . . . . . . . Recycling Units . | . . . . . . . . . . . . . . . . . . . . Scanalyzers . | . . . . . . . . . . . . . . . . . . . . Garrison Access . | . . . . . . . . . . . . . . . . . . . . Data Cores Recovered . | . . . . . . . . . . . . . . . . . . . . Used . | . . . . . . . . . . . . . . . . . . . . Hacking Detections 8 | . . . . . . . . 2 . . . 1 2 . 1 . . 2 . Full Trace Events 5 | . . . . . . . . 2 . . . . 2 . . . . 1 . Feedback Events . | . . . . . . . . . . . . . . . . . . . . Feedback Blocked . | . . . . . . . . . . . . . . . . . . . . Robot Schematics Acquired 5 | . . . . . . . . . . . 5 . . . . . . . . Robots Built . | . . . . . . . . . . . . . . . . . . . . Authchips . | . . . . . . . . . . . . . . . . . . . . Time . | . . . . . . . . . . . . . . . . . . . . Total Robot Build Rating . | . . . . . . . . . . . . . . . . . . . . Part Schematics Acquired 10 | . . . . . . . . . . . 10 . . . . . . . . Parts Built . | . . . . . . . . . . . . . . . . . . . . Authchips . | . . . . . . . . . . . . . . . . . . . . Time . | . . . . . . . . . . . . . . . . . . . . Total Part Build Rating . | . . . . . . . . . . . . . . . . . . . . Parts Repaired . | . . . . . . . . . . . . . . . . . . . . Time . | . . . . . . . . . . . . . . . . . . . . Parts Recycled . | . . . . . . . . . . . . . . . . . . . . Recycled Matter . | . . . . . . . . . . . . . . . . . . . . Retrieved Matter . | . . . . . . . . . . . . . . . . . . . . Retrieved Components . | . . . . . . . . . . . . . . . . . . . . Parts Scanalyzed . | . . . . . . . . . . . . . . . . . . . . Part Schematics Acquired . | . . . . . . . . . . . . . . . . . . . . Parts Damaged . | . . . . . . . . . . . . . . . . . . . . Bothacking | -11 -10 -10 -10 -9 -8 -7 -7 -6 -6 -6 -6 -5 -5 -5 -5 -5 -4 -4 -3 ------------ Run | Jun Mat Min Exi Min Mat Fac DSF Fac Low Low Dat Pro Fac Upp Upp Zhi Pro Fac Res Used RIF Installer . | . . . . . . . . . . . . . . . . . . . . Robots Hacked . | . . . . . . . . . . . . . . . . . . . . Non-combat . | . . . . . . . . . . . . . . . . . . . . Combat . | . . . . . . . . . . . . . . . . . . . . Robot Hacks Applied . | . . . . . . . . . . . . . . . . . . . . Relay Couplers Released 2 | . . . . . . . . . . . . . . . . . . 2 . Machine Destruction 2 | . . . . . . . . . . . . . . . . . . 2 . Fabnet Peak Effective % . | . . . . . . . . . . . . . . . . . . . . Robots Rewired . | . . . . . . . . . . . . . . . . . . . . Allies Hacked . | . . . . . . . . . . . . . . . . . . . . Hacks Repelled . | . . . . . . . . . . . . . . . . . . . . Allies | -11 -10 -10 -10 -9 -8 -7 -7 -6 -6 -6 -6 -5 -5 -5 -5 -5 -4 -4 -3 -------- Run | Jun Mat Min Exi Min Mat Fac DSF Fac Low Low Dat Pro Fac Upp Upp Zhi Pro Fac Res Total Allies 3 | . . 3 . . . . . . . . . . . . . . . . . Largest Group 3 | . . 3 . . . . . . . . . . . . . . . . . Highest-Rated Group 40 | . . 40 . . . . . . . . . . . . . . . . . Highest-Rated Ally 16 | . . 16 . . . . . . . . . . . . . . . . . Total Orders . | . . . . . . . . . . . . . . . . . . . . Ally Attacks . | . . . . . . . . . . . . . . . . . . . . Total Damage . | . . . . . . . . . . . . . . . . . . . . Kills . | . . . . . . . . . . . . . . . . . . . . Allies Corrupted . | . . . . . . . . . . . . . . . . . . . . Allies Melted . | . . . . . . . . . . . . . . . . . . . . Intel | -11 -10 -10 -10 -9 -8 -7 -7 -6 -6 -6 -6 -5 -5 -5 -5 -5 -4 -4 -3 ------- Run | Jun Mat Min Exi Min Mat Fac DSF Fac Low Low Dat Pro Fac Upp Upp Zhi Pro Fac Res Robot Analysis Total 132 | . . . . . . . . 1 . . 131 . . . . . . . . Derelict Logs Recovered 4 | . . 2 . 1 . . . . 1 . . . . . . . . . . Drone Launches . | . . . . . . . . . . . . . . . . . . . . Drone Recoveries . | . . . . . . . . . . . . . . . . . . . . Exploration | -11 -10 -10 -10 -9 -8 -7 -7 -6 -6 -6 -6 -5 -5 -5 -5 -5 -4 -4 -3 ------------- Run | Jun Mat Min Exi Min Mat Fac DSF Fac Low Low Dat Pro Fac Upp Upp Zhi Pro Fac Res Turns Passed 1744 | 11 39 120 89 118 69 14 37 262 70 86 26 76 74 51 152 71 91 284 4 Spaces Moved 4307 | 23 77 240 178 233 128 27 71 527 262 298 90 224 227 157 381 142 320 696 6 Core 1145 | 23 77 240 178 220 128 27 71 52 . . . . . . 25 86 . 12 6 Treads . | . . . . . . . . . . . . . . . . . . . . Legs . | . . . . . . . . . . . . . . . . . . . . Wheels . | . . . . . . . . . . . . . . . . . . . . Hover . | . . . . . . . . . . . . . . . . . . . . Flight 3162 | . . . . 13 . . . 475 262 298 90 224 227 157 356 56 320 684 . Fastest Speed 23 | 50 50 50 50 40 50 50 50 26 25 26 26 26 26 31 31 29 23 26 50 Average Speed 36 | 50 50 50 50 49 50 50 50 37 25 27 26 29 26 31 38 41 28 33 50 Slowest Speed 115 | 50 50 50 50 50 50 50 50 50 29 28 26 32 34 31 100 50 29 115 50 Overloaded Moves 97 | . . . . . . . . . . . . . . . . . 30 67 . Propulsion Burnouts . | . . . . . . . . . . . . . . . . . . . . Robots Hopped 42 | . . . . . . . . 10 2 2 2 . 1 1 6 . 3 15 . Cave-ins Triggered . | . . . . . . . . . . . . . . . . . . . . Teleports 1 | . . . . . . . . . . . . . . . . . . 1 . Exploration Rate (%) 42 | 3 27 69 60 73 16 2 87 22 52 60 78 41 13 42 64 60 60 28 1 Regions Visited 19 Branch Regions 11 Pre-discovered Areas 32 | . . 1 . 1 . . . . . . 27 . . . . 3 . . . Known Exits Taken 6 | . . . . . . 1 . 1 1 . . . 1 . . . 1 1 . Unknown Exits Taken 12 | 1 1 1 1 1 1 . . . . 1 1 1 . 1 1 1 . . . Scrap Searched 20 | . . 1 . 2 . . . . 2 10 . 2 . 1 2 . . . . Spaces Dug 3 | . . . . . . . . . . . . . . . . . . 3 . Terrain Destroyed 3 | . . . . . . . . . . . . . . . . . . 3 . Melee 3 | . . . . . . . . . . . . . . . . . . 3 . Projectile . | . . . . . . . . . . . . . . . . . . . . AOE . | . . . . . . . . . . . . . . . . . . . . Terrain Rammed . | . . . . . . . . . . . . . . . . . . . . Walls Destroyed . | . . . . . . . . . . . . . . . . . . . . Machines Disabled . | . . . . . . . . . . . . . . . . . . . . Actions | -11 -10 -10 -10 -9 -8 -7 -7 -6 -6 -6 -6 -5 -5 -5 -5 -5 -4 -4 -3 --------- Run | Jun Mat Min Exi Min Mat Fac DSF Fac Low Low Dat Pro Fac Upp Upp Zhi Pro Fac Res Total 4377 | 22 76 239 177 234 132 26 71 554 261 297 88 233 239 158 379 150 316 719 6 Wait 14 | . . . . . . . . 4 . . . 8 . . . . . 2 . Move 4213 | 22 76 239 177 232 127 26 70 508 257 293 85 223 224 154 369 141 314 670 6 Hop 34 | . . . . . . . . 8 2 2 2 . 1 1 5 . 2 11 . Pick Up 11 | . . . . 1 4 . . . . . . 1 3 . . 2 . . . Fast Attach 39 | . . . . 1 . . 1 15 . 2 . 1 3 . 1 5 . 10 . Attach 17 | . . . . . . . . 1 2 . . . 2 2 1 2 . 7 . Detach 12 | . . . . . . . . 1 . . . . . 1 2 . . 8 . Swap 1 | . . . . . . . . . . . . . 1 . . . . . . Drop 10 | . . . . . . . . 4 . . . . 5 . 1 . . . . Fire 8 | . . . . . . . . . . . . . . . . . . 8 . Melee 16 | . . . . . . . . 13 . . . . . . . . . 3 . Ram 2 | . . . . . 1 . . . . . 1 . . . . . . . . Kick . | . . . . . . . . . . . . . . . . . . . . Crush . | . . . . . . . . . . . . . . . . . . . . Escape Stasis . | . . . . . . . . . . . . . . . . . . . . Rewire . | . . . . . . . . . . . . . . . . . . . . Trap . | . . . . . . . . . . . . . . . . . . . . Miscellaneous . | . . . . . . . . . . . . . . . . . . . . Route ------- -11/Junkyard -10/Materials -10/Mines (discovered 2 exits: [*Mat] / [*Exi]) -10/Exiles (discovered 2 exits: [*Min x2]) -9/Mines -8/Materials -7/Factory -7/DSF -6/Factory (discovered 2 exits: *Low x2) -6/Lower Caves -6/Lower Caves (discovered 2 exits: *Fac / *Dat) -6/Data Miner -5/Proximity Caves -5/Factory (discovered 4 exits: *Upp x2 / *Ext x2) -5/Upper Caves -5/Upper Caves (discovered 2 exits: *Fac / *Zhi) -5/Zhirov -4/Proximity Caves -4/Factory (discovered 3 exits: *Res x3) -3/Research History --------- Turn | Location | Event 4 | -11/Junkyard | Discovered new exit (range 16) 12 | -11/Junkyard | Entered Materials 47 | -10/Materials | Discovered new exit (range 8) 51 | -10/Materials | Entered Mines 68 | -10/Mines | Discovered new exit (range 8) 81 | -10/Mines | Learned Materials emergency access door positions 90 | -10/Mines | Met a Derelict bent on vengeance 123 | -10/Mines | A weapon hastily lodged in a ceiling crevice suddenly fell to the ground 130 | -10/Mines | Assisted by bots powering up and referring to "LRC-V3" 147 | -10/Mines | Learned location of Zion (-7) 169 | -10/Mines | Deemed a non-threat by the Exiles lab entrance 169 | -10/Mines | Discovered new exit (range 5) 171 | -10/Mines | Entered Exiles 171 | -10/Exiles | Found Exiles lab abandoned 178 | -10/Exiles | Discovered new exit (range 15) 254 | -10/Exiles | Discovered new exit (range 13) 260 | -10/Exiles | Entered Mines 274 | -9/Mines | Found a damaged Exp. Sensor Array with a note attached 280 | -9/Mines | Found Prototype Device 305 | -9/Mines | Build established: Mutant 327 | -9/Mines | Found a hidden stash of uninstalled traps 360 | -9/Mines | Assembled infested the area 367 | -9/Mines | Core integrity fell below 50% 375 | -9/Mines | Core integrity fell below 20% 375 | -9/Mines | Discovered new exit (range 7) 378 | -9/Mines | Entered Materials 378 | -8/Materials | Evolved 4 slots: Weapon x4 443 | -8/Materials | Core integrity fell below 50% 443 | -8/Materials | Discovered new exit (range 10) 447 | -8/Materials | Entered Factory 447 | -7/Factory | Evolved 2 slots: Propulsion x2 461 | -7/Factory | Identified exit to DSF 461 | -7/Factory | Entered DSF 486 | -7/DSF | Discovered new exit (range 14) 490 | -7/DSF | Additional patrols routed to DSF 498 | -7/DSF | Entered Factory 498 | -6/Factory | Evolved 2 slots: Propulsion x1, Utility x1 598 | -6/Factory | Identified Exp. Sensor Array 645 | -6/Factory | Lost 3 parts (2n1u) 689 | -6/Factory | Core integrity fell below 50% 700 | -6/Factory | Identified exit to Lower Caves 760 | -6/Factory | Entered Lower Caves 762 | -6/Lower Caves | Attracted the attention of an 0b10 checkpoint 767 | -6/Lower Caves | Identified exit to Lower Caves 774 | -6/Lower Caves | Lost 3 parts (3n) 830 | -6/Lower Caves | Entered another Lower Caves area 834 | -6/Lower Caves | Discovered new exit (range 11) 852 | -6/Lower Caves | Core integrity fell below 20% 911 | -6/Lower Caves | Discovered new exit (range 15) 914 | -6/Lower Caves | Encountered a Warlord checkpoint 916 | -6/Lower Caves | Entered Data Miner 916 | -6/Data Miner | Discovered new exit (range 7) 921 | -6/Data Miner | Met Data Miner 928 | -6/Data Miner | Learned location of Section 7 (-3) 928 | -6/Data Miner | Acquired the access code to Warlord's prototype stash 931 | -6/Data Miner | Received God Mode back door access code from Data Miner 933 | -6/Data Miner | Interfaced with the Data Conduit 942 | -6/Data Miner | Entered Proximity Caves 1008 | -5/Proximity Caves | Snuck into a huge 0b10 base via the rear entrance 1017 | -5/Proximity Caves | Discovered new exit (range 3) 1018 | -5/Proximity Caves | Entered Factory 1018 | -5/Factory | Evolved 2 slots: Propulsion x1, Utility x1 1019 | -5/Factory | Loaded intel: 305 machine locations 1044 | -5/Factory | Discovered new exit (range 16) 1055 | -5/Factory | Build established: Sprinter 1056 | -5/Factory | Identified exit to Upper Caves 1056 | -5/Factory | Identified exit to Extension 1092 | -5/Factory | Entered Upper Caves 1102 | -5/Upper Caves | Encountered a Warlord checkpoint 1122 | -5/Upper Caves | Lost 3 parts (2n1u) 1139 | -5/Upper Caves | Discovered new exit (range 16) 1143 | -5/Upper Caves | Entered another Upper Caves area 1143 | -5/Upper Caves | Discovered new exit (range 12) 1185 | -5/Upper Caves | Attracted the attention of an 0b10 checkpoint 1224 | -5/Upper Caves | Spotted B-75 Beast 1270 | -5/Upper Caves | Attracted the attention of an 0b10 base 1278 | -5/Upper Caves | Learned location of 1 exit from Proximity Caves 1278 | -5/Upper Caves | Learned Factory emergency access door positions 1278 | -5/Upper Caves | Learned Extension terminal intel 1284 | -5/Upper Caves | Core integrity fell below 50% 1293 | -5/Upper Caves | Discovered new exit (range 4) 1295 | -5/Upper Caves | Entered Zhirov 1295 | -5/Zhirov | Discovered new exit (range 4) 1326 | -5/Zhirov | Found Alien Artifact 1326 | -5/Zhirov | Identified Integrated Reactor 1326 | -5/Zhirov | Installed Integrated Reactor, increased core energy generation (+10) 1333 | -5/Zhirov | Found Alien Artifact 1366 | -5/Zhirov | Entered Proximity Caves 1367 | -4/Proximity Caves | Identified exit to Factory 1457 | -4/Proximity Caves | Entered Factory 1457 | -4/Factory | Evolved 2 slots: Propulsion x1, Utility x1 1458 | -4/Factory | Identified exit to Research 1460 | -4/Factory | Loaded intel: 242 machine locations 1509 | -4/Factory | Spotted B-86 Titan 1528 | -4/Factory | Discovered exit to Research (range 15) 1537 | -4/Factory | Discovered exit to Research (range 15) 1601 | -4/Factory | Intercept squad dispatched 1607 | -4/Factory | System corruption reached 10% 1611 | -4/Factory | Identified Transdimensional Reconstructor 1611 | -4/Factory | Warped through subspace 1622 | -4/Factory | Core integrity fell below 50% 1649 | -4/Factory | Lost 3 parts (3n) 1668 | -4/Factory | Core integrity fell below 20% 1707 | -4/Factory | Search patrols dispatched 1707 | -4/Factory | Lost 3 parts (2n1u) 1739 | -4/Factory | Spotted Tracker 1741 | -4/Factory | Entered Research 1741 | -3/Research | Evolved 2 slots: Propulsion x1, Utility x1 1742 | -3/Research | Loaded intel: 116 machine locations 1745 | -3/Research | Self-destructed Last Messages --------------- 01708_ Penetrated by Slug. 01708_ Field Propulsion Drive destroyed. 01711_ Acquired 26 matter. 01711_ K-01 Serf collects debris. 01712_ Acquired VTOL Module. 01712_ Slug penetrates Wall. 01715_ System corrupted: Component data lost. 01730_ S-27 Virus destroyed. 01733_ System corrupted: Heat flow error (+265). 01735_ VTOL Module fried. 01735_ S-27 Virus destroyed. 01740_ U-05 Engineer builds a Wall. 01740_ VTOL Module destroyed. 01740_ Field Propulsion Drive temporarily disabled. 01740_ Field Propulsion Drive destroyed. 01741_ Slammed into H-71 Marshal. PARAMETERS=PROPULSION+1,UTILITY+1 LOCATION=RESEARCH GOAL=ESCAPE Loading Research machine intel (x116)... Map ----- +----------------------------------------------------+ | | | | | | | | | | | | | | | | | | | | | | | | | ?????????????????????????????????????????????????? | | ?????????????????????????????????????????????????? | | ?????????????????????????????????????????????????? | | ?????????????????????????????????????????????????? | | ?????????????????????????????????????????????????? | | ??????????????####################???????????????? | | ????????????? #???????????????? | | ????????????? #???????????????? | | ????????????? #???????????????? | | ????????????? #???????????????? | | ?????????????############# ####???????????????? | | ?????????????# # #??????????????????? | | ?????????????# # ####???????????????? | | ?????????????# @ ????????? | | ?????????????# # ???????? | | ?????????????# # ????????? | | ?????????????# """ """ ?# ????????? | | ?????????????#??"""T""" ?# ####+#####?????????? | | ?????????????????######??# #??????????????????? | | ?????????????????????????# #??????????????????? | | ????????????????????????? +??????""?""""?????? | | ????????????????????????? #??????""?""""?????? | | ????????????????????????? #??????T"?""""?????? | | ????????????????????????? #??????""?""""?????? | | ?????????????????????????######??????""?""""?????? | | ?????????????????????????????????????????????????? | | ?????????????????????????????????????????????????? | | ?????????""??????????????????????????????????????? | | ?????????"T????"""??????????????????"""""""??????? | | ?????????""????"""??????????????????"""""""??????? | | ???????????????"""??????????????????"""""""??????? | | ?????????????????????????????????????????????????? | | ?????????????????????????????????????????????????? | | ?????????????????????????????????????????????????? | | ?????????????????????????????????????????????????? | | ?????????????????????????????????????????????????? | | ?????????????????????????????????????????????????? | | ?????????????????????????????????????????????????? | +----------------------------------------------------+ Best States ------------- Heat Dissipation 43 Energy Generation 35 Energy Capacity 340 Matter Stores 300 Matter Capacity 300 Sight Range 16 Robot Scan Range 20 Terrain Scan Density 10 Armor Coverage 225 Resistance: TH 10 Power Shielding 66 Utility Shielding 66 Evasion (%) 65 Launcher Accuracy 20 Offensive Hacking 28 Item Schematics ----------------- Combat Drone Bay | -6/Data Miner | Free Lgt. Regenerative Plating | -6/Data Miner | Free Cld. Nuclear Pulse Thruster | -6/Data Miner | Free Imp. Matter Compressor | -6/Data Miner | Free Tiamat Missile Launcher | -6/Data Miner | Free Impulse Thruster | -6/Data Miner | Free Adv. Transmission Jammer | -6/Data Miner | Free Hardcell Cannon | -6/Data Miner | Free Myomer Leg | -6/Data Miner | Free Adv. Corruption Screen | -6/Data Miner | Free Robot Schematics ------------------ I-47 Archangel | -6/Data Miner | Free G-50 Soldier | -6/Data Miner | Free X-62 Marksman | -6/Data Miner | Free A-15 Conveyor | -6/Data Miner | Free B-60 Warrior | -6/Data Miner | Free Fabricated ------------ Nothing Alien Tech Used ----------------- Integrated Reactor Transdimensional Reconstructor Achievements -------------- None Challenges ------------ None Game ------ Seed HardlightTractorInsulator Manual? 0 Play Time 00:32:49 Cumulative 237.1 hours Start 2023.05.24 @ 16:22:56 End 2023.05.24 @ 16:57:31 Sessions 1 Manual Loads 0 Difficulty Rogue Special Mode None Game No. 710 Rogue 710 Adventurer 0 Explorer 0 Win Type - Total 10 Types 8/0/1/1/0/0/0/0/0 Lore% 86 Gallery% 82 Achievement% 73 Wizard Run 0 Options --------- ASCII 0 Keyboard 0 Movement Numpad Keybinds 0 Fullscreen 1 Font 16/SmallcapsGlow Map View 75x55 Tactical HUD 1 Map Filters NONE Filters NONE Steam 1 RUN: 447ebf44-bb17-4557-b773-2e7996b17496